[Event "Late-Titled-Tuesday-Blitz-September-26-2023"]
[Site "Chess.com"]
[Date "2023.09.26"]
[Round "6"]
[White "SaqoChess_Twitch"]
[Black "JonasGallasch"]
[Result "1-0"]
[WhiteElo "2638"]
[BlackElo "2434"]
[TimeControl "180+1"]
[EndTime "14:59:08 PDT"]
[Termination "SaqoChess_Twitch won by resignation"]

1. d4 {[%clk 0:03:00.9]} 1... Nf6 {[%clk 0:02:56]} 2. c4 {[%clk 0:03:00.8]} 2...
e6 {[%clk 0:02:55.6]} 3. Nc3 {[%clk 0:03:00.7]} 3... d5 {[%clk 0:02:52.1]} 4.
cxd5 {[%clk 0:02:57.6]} 4... exd5 {[%clk 0:02:53]} 5. Bg5 {[%clk 0:02:57.4]}
5... c6 {[%clk 0:02:51.8]} 6. e3 {[%clk 0:02:58]} 6... Bf5 {[%clk 0:02:42.5]} 7.
Bd3 {[%clk 0:02:58.2]} 7... Bxd3 {[%clk 0:02:41.8]} 8. Qxd3 {[%clk 0:02:59.1]}
8... Be7 {[%clk 0:02:38.3]} 9. Nf3 {[%clk 0:02:59.7]} 9... h6 {[%clk 0:02:37.1]}
10. Bf4 {[%clk 0:02:59.3]} 10... Nbd7 {[%clk 0:02:35.4]} 11. O-O {[%clk
0:02:59.9]} 11... Nh5 {[%clk 0:02:35.4]} 12. Be5 {[%clk 0:02:59.5]} 12... Nxe5
{[%clk 0:02:33]} 13. dxe5 {[%clk 0:02:56.5]} 13... Qc7 {[%clk 0:02:24]} 14. g4
{[%clk 0:02:55.3]} 14... Qd7 {[%clk 0:02:14.3]} 15. Qd4 {[%clk 0:02:45.5]} 15...
g6 {[%clk 0:02:10]} 16. gxh5 {[%clk 0:02:44.8]} 16... Qh3 {[%clk 0:02:09.8]} 17.
Qf4 {[%clk 0:02:36.5]} 17... gxh5 {[%clk 0:02:06.8]} 18. Qg3 {[%clk 0:02:36.2]}
1-0

[Event "Late-Titled-Tuesday-Blitz-September-26-2023"]
[Site "Chess.com"]
[Date "2023.09.26"]
[Round "6"]
[White "Horokoskii"]
[Black "dzilleruelo"]
[Result "1-0"]
[WhiteElo "2114"]
[BlackElo "2295"]
[TimeControl "180+1"]
[EndTime "15:00:30 PDT"]
[Termination "Horokoskii won by resignation"]

1. c4 {[%clk 0:03:00.9]} 1... e5 {[%clk 0:02:58.7]} 2. Nc3 {[%clk 0:02:59.4]}
2... Nf6 {[%clk 0:02:58.8]} 3. Nf3 {[%clk 0:02:59.6]} 3... Nc6 {[%clk
0:02:58.9]} 4. e4 {[%clk 0:03:00.1]} 4... Bc5 {[%clk 0:02:58.5]} 5. Nxe5 {[%clk
0:03:00.1]} 5... Nxe5 {[%clk 0:02:56.9]} 6. d4 {[%clk 0:03:00]} 6... Bd6 {[%clk
0:02:56.8]} 7. dxe5 {[%clk 0:02:59.9]} 7... Bxe5 {[%clk 0:02:57.7]} 8. Bd3
{[%clk 0:02:53.9]} 8... h6 {[%clk 0:02:50.1]} 9. O-O {[%clk 0:02:53.3]} 9... O-O
{[%clk 0:02:49.7]} 10. Ne2 {[%clk 0:02:47.6]} 10... c6 {[%clk 0:01:39.2]} 11. f4
{[%clk 0:02:38.8]} 11... Bc7 {[%clk 0:01:39.3]} 12. e5 {[%clk 0:02:35.9]} 12...
Nh7 {[%clk 0:01:31.4]} 13. Qc2 {[%clk 0:02:31.9]} 13... g6 {[%clk 0:01:31.7]}
14. Rf3 {[%clk 0:02:22.5]} 14... Kg7 {[%clk 0:01:27.8]} 15. f5 {[%clk
0:02:16.4]} 15... Ng5 {[%clk 0:01:28]} 16. f6+ {[%clk 0:02:15.2]} 16... Kg8
{[%clk 0:01:26.2]} 17. Bxg5 {[%clk 0:02:06.1]} 17... hxg5 {[%clk 0:01:26.1]} 18.
Bxg6 {[%clk 0:02:04.1]} 18... Bxe5 {[%clk 0:01:19.6]} 19. Bh7+ {[%clk
0:02:04.1]} 19... Kh8 {[%clk 0:01:19.5]} 20. Rh3 {[%clk 0:02:03.2]} 20... Bxf6
{[%clk 0:01:17.8]} 21. Bg8+ {[%clk 0:02:02.4]} 1-0

[Event "Late-Titled-Tuesday-Blitz-September-26-2023"]
[Site "Chess.com"]
[Date "2023.09.26"]
[Round "6"]
[White "Sanan_Sjugirov"]
[Black "lamomiajunior"]
[Result "1-0"]
[WhiteElo "2976"]
[BlackElo "2744"]
[TimeControl "180+1"]
[EndTime "15:00:57 PDT"]
[Termination "Sanan_Sjugirov won by resignation"]

1. e4 {[%clk 0:03:00.9]} 1... c6 {[%clk 0:03:00.3]} 2. d4 {[%clk 0:03:00.6]}
2... d5 {[%clk 0:03:00.9]} 3. e5 {[%clk 0:03:01.2]} 3... Bf5 {[%clk 0:03:01.1]}
4. Nd2 {[%clk 0:03:01.9]} 4... e6 {[%clk 0:03:00.1]} 5. Nb3 {[%clk 0:03:02.4]}
5... a6 {[%clk 0:02:57.7]} 6. Nf3 {[%clk 0:03:00.1]} 6... Nd7 {[%clk 0:02:57.8]}
7. c3 {[%clk 0:02:56.1]} 7... c5 {[%clk 0:02:55.5]} 8. dxc5 {[%clk 0:02:53.1]}
8... Nxc5 {[%clk 0:02:56]} 9. Be3 {[%clk 0:02:43.2]} 9... Rc8 {[%clk 0:02:51.2]}
10. Be2 {[%clk 0:02:39.6]} 10... Ne4 {[%clk 0:02:24.3]} 11. O-O {[%clk
0:02:38.3]} 11... Ne7 {[%clk 0:02:20.5]} 12. Nfd4 {[%clk 0:02:38.2]} 12... Bg6
{[%clk 0:02:19.4]} 13. f3 {[%clk 0:02:38.2]} 13... Nc5 {[%clk 0:01:59.5]} 14.
Nxc5 {[%clk 0:02:37.6]} 14... Rxc5 {[%clk 0:02:00.4]} 15. Nxe6 {[%clk
0:02:37.8]} 15... fxe6 {[%clk 0:01:57.7]} 16. Bxc5 {[%clk 0:02:38.4]} 16... Nf5
{[%clk 0:01:57.7]} 17. Bf2 {[%clk 0:02:37.5]} 17... Qg5 {[%clk 0:01:55.9]} 18.
Qc1 {[%clk 0:02:34.1]} 18... Qh5 {[%clk 0:01:52.5]} 19. g4 {[%clk 0:02:33.3]}
19... Qh3 {[%clk 0:01:50.6]} 20. gxf5 {[%clk 0:02:32.7]} 20... Bxf5 {[%clk
0:01:51.5]} 21. Qg5 {[%clk 0:02:30.1]} 21... Be7 {[%clk 0:01:51.4]} 22. Qg3
{[%clk 0:02:25.5]} 22... Qh6 {[%clk 0:01:51.8]} 23. Rad1 {[%clk 0:02:22]} 23...
Rf8 {[%clk 0:01:51.4]} 24. c4 {[%clk 0:02:05.6]} 24... dxc4 {[%clk 0:01:48.5]}
25. Bxc4 {[%clk 0:02:02.1]} 25... g5 {[%clk 0:01:49.1]} 26. Bd3 {[%clk
0:01:59.7]} 26... Qg6 {[%clk 0:01:47.8]} 27. Bxf5 {[%clk 0:01:56]} 27... Rxf5
{[%clk 0:01:48.7]} 28. Rc1 {[%clk 0:01:40.4]} 28... h5 {[%clk 0:01:48.1]} 29.
Rc8+ {[%clk 0:01:40.3]} 29... Kf7 {[%clk 0:01:48.4]} 30. Rc7 {[%clk 0:01:40.6]}
30... h4 {[%clk 0:01:47.9]} 31. Qg2 {[%clk 0:01:38.9]} 31... Rf4 {[%clk
0:01:46.5]} 32. Bc5 {[%clk 0:01:37.6]} 1-0

[Event "Late-Titled-Tuesday-Blitz-September-26-2023"]
[Site "Chess.com"]
[Date "2023.09.26"]
[Round "6"]
[White "MaxLeto"]
[Black "pirulillo"]
[Result "1-0"]
[WhiteElo "2506"]
[BlackElo "2359"]
[TimeControl "180+1"]
[EndTime "15:01:17 PDT"]
[Termination "MaxLeto won by resignation"]

1. g4 {[%clk 0:03:00.9]} 1... d5 {[%clk 0:02:56.3]} 2. Bg2 {[%clk 0:03:00.1]}
2... c6 {[%clk 0:02:50.7]} 3. h3 {[%clk 0:02:31.8]} 3... e5 {[%clk 0:02:49.4]}
4. d4 {[%clk 0:02:32]} 4... e4 {[%clk 0:02:46.6]} 5. c4 {[%clk 0:02:29.4]} 5...
h5 {[%clk 0:02:34.7]} 6. g5 {[%clk 0:02:28.8]} 6... Bd6 {[%clk 0:02:27.2]} 7.
Nc3 {[%clk 0:02:28.4]} 7... Ne7 {[%clk 0:02:26.2]} 8. Qb3 {[%clk 0:02:22.8]}
8... Nf5 {[%clk 0:02:13.8]} 9. cxd5 {[%clk 0:02:16.9]} 9... e3 {[%clk
0:02:06.9]} 10. Bxe3 {[%clk 0:02:12]} 10... Nxe3 {[%clk 0:02:05]} 11. fxe3
{[%clk 0:02:12.9]} 11... Bg3+ {[%clk 0:02:02.5]} 12. Kd2 {[%clk 0:02:11.4]}
12... O-O {[%clk 0:01:59.7]} 13. Nf3 {[%clk 0:02:00.4]} 13... Re8 {[%clk
0:01:45]} 14. g6 {[%clk 0:01:51.6]} 14... Qe7 {[%clk 0:01:37]} 15. gxf7+ {[%clk
0:01:48.2]} 15... Qxf7 {[%clk 0:01:30.2]} 16. Ng5 {[%clk 0:01:47.5]} 16... Qf6
{[%clk 0:01:05]} 17. Nce4 {[%clk 0:01:33.4]} 1-0

[Event "Late-Titled-Tuesday-Blitz-September-26-2023"]
[Site "Chess.com"]
[Date "2023.09.26"]
[Round "6"]
[White "CheckThis4"]
[Black "eCztery"]
[Result "1-0"]
[WhiteElo "2679"]
[BlackElo "2430"]
[TimeControl "180+1"]
[EndTime "15:01:32 PDT"]
[Termination "CheckThis4 won by resignation"]

1. e4 {[%clk 0:03:00.9]} 1... c5 {[%clk 0:02:57.9]} 2. Nf3 {[%clk 0:03:00.6]}
2... g6 {[%clk 0:02:58]} 3. d4 {[%clk 0:02:59.8]} 3... cxd4 {[%clk 0:02:58.9]}
4. Nxd4 {[%clk 0:03:00]} 4... Nc6 {[%clk 0:02:58.8]} 5. Nc3 {[%clk 0:02:57.9]}
5... Bg7 {[%clk 0:02:58.4]} 6. Be3 {[%clk 0:02:57.8]} 6... Nf6 {[%clk
0:02:58.7]} 7. Nxc6 {[%clk 0:02:57.7]} 7... bxc6 {[%clk 0:02:58.6]} 8. e5 {[%clk
0:02:57.6]} 8... Ng8 {[%clk 0:02:58.9]} 9. Bd4 {[%clk 0:02:57.4]} 9... Qc7
{[%clk 0:02:52.2]} 10. Qe2 {[%clk 0:02:41]} 10... c5 {[%clk 0:02:34.3]} 11. Nb5
{[%clk 0:02:21.6]} 11... Qc6 {[%clk 0:02:19.9]} 12. Bc3 {[%clk 0:02:15.2]} 12...
Ba6 {[%clk 0:02:10.1]} 13. O-O-O {[%clk 0:01:54.5]} 13... Rb8 {[%clk 0:01:55.4]}
14. a4 {[%clk 0:01:34]} 14... Nh6 {[%clk 0:01:50.4]} 15. e6 {[%clk 0:01:14.4]}
15... Bxc3 {[%clk 0:01:44.6]} 16. exd7+ {[%clk 0:01:13.8]} 16... Kd8 {[%clk
0:01:31.4]} 17. bxc3 {[%clk 0:01:12.9]} 17... Nf5 {[%clk 0:01:15]} 18. Qe5
{[%clk 0:01:11.6]} 1-0

[Event "Late-Titled-Tuesday-Blitz-September-26-2023"]
[Site "Chess.com"]
[Date "2023.09.26"]
[Round "6"]
[White "Balla_Tamas"]
[Black "vova-79"]
[Result "1/2-1/2"]
[WhiteElo "2431"]
[BlackElo "2609"]
[TimeControl "180+1"]
[EndTime "15:01:38 PDT"]
[Termination "Game drawn by agreement"]

1. e4 {[%clk 0:03:00.9]} 1... c6 {[%clk 0:02:59.4]} 2. d4 {[%clk 0:03:01]} 2...
d5 {[%clk 0:02:59.6]} 3. exd5 {[%clk 0:03:01.9]} 3... cxd5 {[%clk 0:02:59.6]} 4.
c4 {[%clk 0:03:02.7]} 4... Nf6 {[%clk 0:02:59.2]} 5. Nc3 {[%clk 0:03:03.3]} 5...
g6 {[%clk 0:02:59.4]} 6. Qb3 {[%clk 0:03:02.8]} 6... Bg7 {[%clk 0:02:59.2]} 7.
cxd5 {[%clk 0:03:03.3]} 7... O-O {[%clk 0:02:58.3]} 8. g3 {[%clk 0:03:03]} 8...
e6 {[%clk 0:02:22.2]} 9. Bg2 {[%clk 0:02:44.7]} 9... Nxd5 {[%clk 0:02:17.4]} 10.
Nxd5 {[%clk 0:02:38.8]} 10... exd5 {[%clk 0:02:14.9]} 11. Ne2 {[%clk 0:02:38.5]}
11... Nc6 {[%clk 0:02:08.7]} 12. O-O {[%clk 0:02:14.8]} 12... Nxd4 {[%clk
0:02:02.4]} 13. Nxd4 {[%clk 0:02:14.7]} 13... Bxd4 {[%clk 0:02:02.9]} 14. Rd1
{[%clk 0:02:05.2]} 14... Qb6 {[%clk 0:02:01.6]} 15. Qxb6 {[%clk 0:02:00.9]}
15... Bxb6 {[%clk 0:02:02.5]} 16. Bxd5 {[%clk 0:01:59.3]} 16... Bg4 {[%clk
0:02:02.3]} 17. Re1 {[%clk 0:01:50.3]} 17... Rfd8 {[%clk 0:01:43.5]} 18. Bxb7
{[%clk 0:01:44.4]} 18... Rab8 {[%clk 0:01:43.7]} 19. Be4 {[%clk 0:01:12.5]}
19... Bd4 {[%clk 0:01:42.7]} 20. Be3 {[%clk 0:01:07.2]} 20... Bxe3 {[%clk
0:01:38.7]} 21. Rxe3 {[%clk 0:01:02.3]} 21... Rxb2 {[%clk 0:01:36.2]} 22. Rb3
{[%clk 0:01:02.3]} 22... Rdd2 {[%clk 0:01:27.4]} 23. Rxb2 {[%clk 0:01:01.7]}
23... Rxb2 {[%clk 0:01:28.3]} 24. Bd5 {[%clk 0:01:02.3]} 24... Be6 {[%clk
0:01:24.2]} 25. Bxe6 {[%clk 0:00:57.8]} 25... fxe6 {[%clk 0:01:25.1]} 1/2-1/2

[Event "Late-Titled-Tuesday-Blitz-September-26-2023"]
[Site "Chess.com"]
[Date "2023.09.26"]
[Round "6"]
[White "DrCeltic"]
[Black "Korchmar_Vasiliy"]
[Result "0-1"]
[WhiteElo "2458"]
[BlackElo "2688"]
[TimeControl "180+1"]
[EndTime "15:01:47 PDT"]
[Termination "Korchmar_Vasiliy won by resignation"]

1. e4 {[%clk 0:02:48.7]} 1... c5 {[%clk 0:02:59.9]} 2. Nf3 {[%clk 0:02:48.8]}
2... d6 {[%clk 0:02:59.7]} 3. d4 {[%clk 0:02:49.1]} 3... cxd4 {[%clk 0:03:00.6]}
4. Nxd4 {[%clk 0:02:49]} 4... Nf6 {[%clk 0:03:01.2]} 5. Nc3 {[%clk 0:02:49.5]}
5... Nc6 {[%clk 0:03:01.8]} 6. Bc4 {[%clk 0:02:48.4]} 6... Qb6 {[%clk
0:03:00.6]} 7. Nb3 {[%clk 0:02:49.3]} 7... e6 {[%clk 0:03:00.3]} 8. Be3 {[%clk
0:02:49.7]} 8... Qc7 {[%clk 0:02:59.8]} 9. Bd3 {[%clk 0:02:50.6]} 9... a6 {[%clk
0:02:59.4]} 10. f4 {[%clk 0:02:51.3]} 10... b5 {[%clk 0:02:55]} 11. Qf3 {[%clk
0:02:51.2]} 11... Bb7 {[%clk 0:02:54.9]} 12. O-O-O {[%clk 0:02:51.3]} 12... Nb4
{[%clk 0:02:35.7]} 13. Kb1 {[%clk 0:02:51.1]} 13... Be7 {[%clk 0:02:22]} 14. a3
{[%clk 0:02:46.3]} 14... Nxd3 {[%clk 0:02:21.6]} 15. cxd3 {[%clk 0:02:47.2]}
15... O-O {[%clk 0:02:21]} 16. g4 {[%clk 0:02:47.2]} 16... d5 {[%clk 0:02:14.8]}
17. g5 {[%clk 0:02:45.8]} 17... dxe4 {[%clk 0:02:13.8]} 18. Nxe4 {[%clk
0:02:42.6]} 18... Nxe4 {[%clk 0:01:51.8]} 19. dxe4 {[%clk 0:02:43.5]} 19... Qc6
{[%clk 0:01:52.4]} 20. Nd2 {[%clk 0:02:37]} 20... b4 {[%clk 0:01:52.8]} 21. Rc1
{[%clk 0:02:31.4]} 21... Qb5 {[%clk 0:01:45]} 22. Qf1 {[%clk 0:02:22.8]} 22...
Qd7 {[%clk 0:01:28.4]} 23. a4 {[%clk 0:01:51.9]} 23... Qxa4 {[%clk 0:01:25.6]}
24. Rc7 {[%clk 0:01:51.4]} 24... b3 {[%clk 0:01:16.5]} 25. Rxb7 {[%clk
0:01:43.9]} 25... Qa2+ {[%clk 0:01:15]} 26. Kc1 {[%clk 0:01:44.4]} 26... Qa1+
{[%clk 0:01:09.7]} 27. Nb1 {[%clk 0:01:43.4]} 27... Rac8+ {[%clk 0:01:03.8]} 28.
Kd2 {[%clk 0:01:43.7]} 28... Qxb2+ {[%clk 0:01:04.2]} 29. Kd3 {[%clk 0:01:40.5]}
29... Qc2+ {[%clk 0:00:58.7]} 30. Kd4 {[%clk 0:01:41.2]} 0-1

[Event "Late-Titled-Tuesday-Blitz-September-26-2023"]
[Site "Chess.com"]
[Date "2023.09.26"]
[Round "6"]
[White "mishanick"]
[Black "Druid24"]
[Result "1-0"]
[WhiteElo "3095"]
[BlackElo "2705"]
[TimeControl "180+1"]
[EndTime "15:01:58 PDT"]
[Termination "mishanick won by resignation"]

1. d4 {[%clk 0:03:00.9]} 1... Nf6 {[%clk 0:02:56.8]} 2. c4 {[%clk 0:03:01.3]}
2... g6 {[%clk 0:02:56.1]} 3. Nc3 {[%clk 0:03:01.8]} 3... Bg7 {[%clk 0:02:56.4]}
4. e4 {[%clk 0:03:02.4]} 4... d6 {[%clk 0:02:55.8]} 5. Bd3 {[%clk 0:03:02.8]}
5... O-O {[%clk 0:02:54.5]} 6. Nge2 {[%clk 0:03:03.4]} 6... e5 {[%clk
0:02:52.8]} 7. d5 {[%clk 0:03:03.8]} 7... Nbd7 {[%clk 0:02:51.2]} 8. f3 {[%clk
0:03:03.4]} 8... Nc5 {[%clk 0:02:51.2]} 9. Bc2 {[%clk 0:03:03.4]} 9... a5 {[%clk
0:02:51.8]} 10. Be3 {[%clk 0:03:03.8]} 10... b6 {[%clk 0:02:51]} 11. Qd2 {[%clk
0:03:02.4]} 11... Bd7 {[%clk 0:02:44.6]} 12. g4 {[%clk 0:03:01.7]} 12... h5
{[%clk 0:02:41]} 13. h3 {[%clk 0:02:58.9]} 13... c6 {[%clk 0:02:32.7]} 14. dxc6
{[%clk 0:02:52.8]} 14... Bxc6 {[%clk 0:02:33.6]} 15. O-O-O {[%clk 0:02:53.2]}
15... Nb7 {[%clk 0:01:23.7]} 16. Kb1 {[%clk 0:02:47.5]} 16... a4 {[%clk
0:01:20.1]} 17. Rhg1 {[%clk 0:02:42.1]} 17... h4 {[%clk 0:01:19.3]} 18. Bg5
{[%clk 0:02:40.4]} 18... Qc8 {[%clk 0:01:18.7]} 19. Bxh4 {[%clk 0:02:39]} 19...
a3 {[%clk 0:01:18.6]} 20. b3 {[%clk 0:02:38.1]} 20... Nd7 {[%clk 0:01:05.3]} 21.
Bf2 {[%clk 0:02:29.9]} 21... Ndc5 {[%clk 0:01:05.4]} 22. h4 {[%clk 0:02:30.6]}
22... Ne6 {[%clk 0:01:02.3]} 23. Bxb6 {[%clk 0:02:28.5]} 23... Ra6 {[%clk
0:00:59]} 24. Be3 {[%clk 0:02:27.9]} 24... Nbc5 {[%clk 0:00:58.6]} 25. h5 {[%clk
0:02:25.8]} 25... Qb7 {[%clk 0:00:56.5]} 26. Bh6 {[%clk 0:01:58.4]} 26... Rb8
{[%clk 0:00:54.3]} 27. Bxg7 {[%clk 0:01:57.4]} 27... Kxg7 {[%clk 0:00:53.9]} 28.
hxg6 {[%clk 0:01:54.8]} 28... fxg6 {[%clk 0:00:53.1]} 29. Qxd6 {[%clk
0:01:53.1]} 29... Ba4 {[%clk 0:00:36.5]} 30. Qxe5+ {[%clk 0:01:52.2]} 30... Kf7
{[%clk 0:00:36.1]} 31. Rh1 {[%clk 0:01:40.3]} 1-0

[Event "Late-Titled-Tuesday-Blitz-September-26-2023"]
[Site "Chess.com"]
[Date "2023.09.26"]
[Round "6"]
[White "jaskol95"]
[Black "Hrant_ChessMood"]
[Result "0-1"]
[WhiteElo "2625"]
[BlackElo "2900"]
[TimeControl "180+1"]
[EndTime "15:02:06 PDT"]
[Termination "Hrant_ChessMood won by checkmate"]

1. e4 {[%clk 0:03:00.9]} 1... c5 {[%clk 0:02:55.8]} 2. Nf3 {[%clk 0:03:01.3]}
2... Nc6 {[%clk 0:02:55.3]} 3. b4 {[%clk 0:03:01.9]} 3... cxb4 {[%clk
0:02:54.8]} 4. d4 {[%clk 0:03:01]} 4... g6 {[%clk 0:02:47.8]} 5. a3 {[%clk
0:02:56.7]} 5... Bg7 {[%clk 0:02:40.3]} 6. axb4 {[%clk 0:02:56.8]} 6... Nxb4
{[%clk 0:02:40.5]} 7. c3 {[%clk 0:02:57.3]} 7... Nc6 {[%clk 0:02:40.3]} 8. Bc4
{[%clk 0:02:54.8]} 8... d6 {[%clk 0:02:33.4]} 9. O-O {[%clk 0:02:46.1]} 9... Nf6
{[%clk 0:02:30.9]} 10. Re1 {[%clk 0:02:35.2]} 10... O-O {[%clk 0:02:30.7]} 11.
h3 {[%clk 0:02:35]} 11... Nxe4 {[%clk 0:02:29.1]} 12. Rxe4 {[%clk 0:02:30.1]}
12... d5 {[%clk 0:02:29.2]} 13. Bxd5 {[%clk 0:02:29.7]} 13... Qxd5 {[%clk
0:02:30.1]} 14. Qe2 {[%clk 0:02:27.5]} 14... Bf5 {[%clk 0:02:28.3]} 15. Re3
{[%clk 0:02:24.6]} 15... Rfe8 {[%clk 0:02:27.3]} 16. c4 {[%clk 0:02:08.4]} 16...
Nxd4 {[%clk 0:02:24.7]} 17. Nxd4 {[%clk 0:02:00.2]} 17... Qxd4 {[%clk 0:02:24]}
18. Nc3 {[%clk 0:01:52.7]} 18... Rad8 {[%clk 0:02:15.6]} 19. Ra5 {[%clk
0:01:25.6]} 19... Bd3 {[%clk 0:02:14]} 20. Rxd3 {[%clk 0:01:17.3]} 20... Qxd3
{[%clk 0:02:13.5]} 21. Qxd3 {[%clk 0:01:16]} 21... Rxd3 {[%clk 0:02:14.4]} 22.
Ne2 {[%clk 0:01:12.7]} 22... Rd1+ {[%clk 0:02:13.9]} 23. Kh2 {[%clk 0:01:13.1]}
23... Re1 {[%clk 0:02:14.8]} 24. Ra2 {[%clk 0:01:12.5]} 24... Rc8 {[%clk
0:02:14]} 25. Be3 {[%clk 0:01:09.8]} 25... Rxc4 {[%clk 0:02:12.4]} 26. Rxa7
{[%clk 0:01:10]} 26... Be5+ {[%clk 0:02:09.2]} 27. Ng3 {[%clk 0:01:06.7]} 27...
Rxe3 {[%clk 0:02:06.9]} 28. fxe3 {[%clk 0:01:06.3]} 28... Rb4 {[%clk 0:02:05.9]}
29. h4 {[%clk 0:01:04.5]} 29... Rxh4+ {[%clk 0:02:04.4]} 30. Kg1 {[%clk
0:01:05]} 30... Bxg3 {[%clk 0:02:04.9]} 31. Kf1 {[%clk 0:01:04.7]} 31... Rb4
{[%clk 0:02:03.1]} 32. Ke2 {[%clk 0:01:05]} 32... h5 {[%clk 0:02:02.7]} 33. Kf3
{[%clk 0:01:05.6]} 33... h4 {[%clk 0:02:02.8]} 34. Ra8+ {[%clk 0:01:06.1]} 34...
Kg7 {[%clk 0:02:02.8]} 35. e4 {[%clk 0:01:07]} 35... f5 {[%clk 0:02:00.9]} 36.
Re8 {[%clk 0:01:05]} 36... Rb3+ {[%clk 0:02:00.2]} 37. Ke2 {[%clk 0:01:04.7]}
37... Kf6 {[%clk 0:02:00.1]} 38. exf5 {[%clk 0:01:04.1]} 38... gxf5 {[%clk
0:02:01]} 39. Rf8+ {[%clk 0:01:04.5]} 39... Ke5 {[%clk 0:02:01.1]} 40. Re8
{[%clk 0:01:04.3]} 40... e6 {[%clk 0:01:59.8]} 41. Rg8 {[%clk 0:01:04.4]} 41...
Rb2+ {[%clk 0:02:00]} 42. Ke3 {[%clk 0:01:03.7]} 42... Rxg2 {[%clk 0:01:59.4]}
43. Kf3 {[%clk 0:01:03.6]} 43... Rf2+ {[%clk 0:01:59.2]} 44. Ke3 {[%clk
0:01:04.2]} 44... f4+ {[%clk 0:01:59.4]} 45. Kd3 {[%clk 0:01:04.5]} 45... h3
{[%clk 0:02:00.3]} 46. Rh8 {[%clk 0:01:04.2]} 46... h2 {[%clk 0:02:00.5]} 47.
Kc3 {[%clk 0:01:04.9]} 47... Ke4 {[%clk 0:02:00.7]} 48. Kb3 {[%clk 0:01:04.8]}
48... e5 {[%clk 0:02:01.1]} 49. Ka3 {[%clk 0:01:05.1]} 49... Rf1 {[%clk
0:02:01.4]} 50. Rc8 {[%clk 0:01:04.2]} 50... h1=Q {[%clk 0:02:01.5]} 51. Rc4+
{[%clk 0:01:04.8]} 51... Kf5 {[%clk 0:02:01.5]} 52. Rc2 {[%clk 0:01:05]} 52...
Qd5 {[%clk 0:01:59.9]} 53. Kb2 {[%clk 0:01:03.6]} 53... Qb5+ {[%clk 0:01:59.5]}
54. Kc3 {[%clk 0:01:03.1]} 54... Rf3+ {[%clk 0:01:59.4]} 55. Kd2 {[%clk
0:01:03.7]} 55... Rd3+ {[%clk 0:01:58.3]} 56. Ke2 {[%clk 0:01:03]} 56... f3+
{[%clk 0:01:57.8]} 57. Kf1 {[%clk 0:01:02.5]} 57... Rd1# {[%clk 0:01:58.1]} 0-1

[Event "Late-Titled-Tuesday-Blitz-September-26-2023"]
[Site "Chess.com"]
[Date "2023.09.26"]
[Round "6"]
[White "DanielNaroditsky"]
[Black "TigrVShlyape"]
[Result "1/2-1/2"]
[WhiteElo "3135"]
[BlackElo "2977"]
[TimeControl "180+1"]
[EndTime "15:02:10 PDT"]
[Termination "Game drawn by agreement"]

1. e4 {[%clk 0:03:00.4]} 1... c5 {[%clk 0:02:58]} 2. Nf3 {[%clk 0:02:54.6]} 2...
e6 {[%clk 0:02:58.2]} 3. d4 {[%clk 0:02:51.3]} 3... cxd4 {[%clk 0:02:58.2]} 4.
Nxd4 {[%clk 0:02:52.2]} 4... a6 {[%clk 0:02:58]} 5. Bd3 {[%clk 0:02:50.3]} 5...
Bc5 {[%clk 0:02:52.4]} 6. Nb3 {[%clk 0:02:49.7]} 6... Ba7 {[%clk 0:02:52.5]} 7.
Qe2 {[%clk 0:02:47]} 7... d6 {[%clk 0:02:47.3]} 8. Nc3 {[%clk 0:02:44.1]} 8...
Ne7 {[%clk 0:02:40.1]} 9. Be3 {[%clk 0:02:44.7]} 9... b5 {[%clk 0:02:35.8]} 10.
O-O {[%clk 0:02:15.5]} 10... e5 {[%clk 0:02:33]} 11. Bxa7 {[%clk 0:02:12.7]}
11... Rxa7 {[%clk 0:02:32.9]} 12. f4 {[%clk 0:02:13.4]} 12... exf4 {[%clk
0:02:32.5]} 13. e5 {[%clk 0:01:58.9]} 13... Nbc6 {[%clk 0:02:20.5]} 14. exd6
{[%clk 0:01:47.2]} 14... Qxd6 {[%clk 0:02:19.9]} 15. Rad1 {[%clk 0:01:47.6]}
15... Qe5 {[%clk 0:02:01.4]} 16. Qf2 {[%clk 0:01:40.7]} 16... O-O {[%clk
0:01:58.6]} 17. Rde1 {[%clk 0:01:37.6]} 17... Qg5 {[%clk 0:01:58.2]} 18. Ne4
{[%clk 0:01:34.9]} 18... Qh6 {[%clk 0:01:57.6]} 19. Qxf4 {[%clk 0:01:33.4]}
19... Qxf4 {[%clk 0:01:57.3]} 20. Rxf4 {[%clk 0:01:34.3]} 20... Nd5 {[%clk
0:01:55.6]} 21. Rff1 {[%clk 0:01:32.3]} 21... Ndb4 {[%clk 0:01:55.4]} 22. Nbc5
{[%clk 0:01:21.9]} 22... Nxd3 {[%clk 0:01:54.6]} 23. Nxd3 {[%clk 0:01:22]} 23...
a5 {[%clk 0:01:34.6]} 24. Nd6 {[%clk 0:01:17.7]} 24... b4 {[%clk 0:01:31.2]} 25.
Nc5 {[%clk 0:01:12.8]} 25... Rc7 {[%clk 0:01:24.8]} 26. Nb5 {[%clk 0:01:09.7]}
26... Re7 {[%clk 0:01:24.9]} 27. Rxe7 {[%clk 0:01:07.1]} 27... Nxe7 {[%clk
0:01:24.9]} 28. Re1 {[%clk 0:01:04.1]} 28... Nc6 {[%clk 0:01:24.9]} 29. Nd6
{[%clk 0:00:59.4]} 29... g6 {[%clk 0:01:20.7]} 30. c3 {[%clk 0:00:52.3]} 30...
bxc3 {[%clk 0:01:19.5]} 31. bxc3 {[%clk 0:00:53.2]} 31... Rd8 {[%clk 0:01:19.1]}
32. Nxc8 {[%clk 0:00:49.5]} 32... Rxc8 {[%clk 0:01:19]} 33. Ne4 {[%clk
0:00:47.7]} 33... Rd8 {[%clk 0:01:15.2]} 1/2-1/2